fUSD/lending_fUSD_20260526
["ID","MTS","AMOUNT","RATE_DAILY","PERIOD"]
[423048624,1779797451000,-302.1844563,0.00035563,2]
[423048659,1779797451000,-300.0,0.00035563,2]
[423048666,1779797451000,-300.0,0.00035563,2]
[423048664,1779797451000,-300.0,0.00035563,2]
[423048662,1779797451000,-300.0,0.00035563,2]
[423048665,1779797451000,-300.0,0.00035563,2]
[423048667,1779797451000,-484.71261076,0.00035563,2]
[423048680,1779797451000,-400.0,0.00035951,2]
[423048681,1779797451000,-400.0,0.00035951,2]
[423048670,1779797451000,-179.22333332,0.00035616,60]
[423048669,1779797451000,-4514.19372464,0.0003561,2]
[423048672,1779797451000,-238.42018816,0.00035617,2]
[423048677,1779797451000,-350.0,0.0003589,5]
[423048671,1779797451000,-326.4,0.00035616,2]
[423048663,1779797451000,-300.0,0.00035563,2]
[423048673,1779797451000,-198.0,0.00035742,30]
[423048678,1779797451000,-4500.0,0.000359,13]
[423048675,1779797451000,-11998.2705,0.00035837,2]
[423048674,1779797451000,-156.0,0.00035742,30]
[423048679,1779797451000,-501.4427202,0.00035927,2]
[423048683,1779797451000,-11998.2705,0.00035965,2]
[423048689,1779797451000,-500.0,0.00036,2]
[423048682,1779797451000,-4288.93127889,0.00035965,2]
[423048686,1779797451000,-500.0,0.00036,2]
[423048685,1779797451000,-500.0,0.00036,2]
[423048687,1779797451000,-500.0,0.00036,2]
[423048684,1779797451000,-500.0,0.00036,2]
[423048690,1779797451000,-500.0,0.00036,2]
[423048625,1779797451000,-300.0,0.00035563,2]
[423048676,1779797451000,-2245.0354,0.00035837,2]
[423048660,1779797451000,-452.48121198,0.00035563,2]
[423048688,1779797451000,-500.0,0.00036,2]
[423048668,1779797451000,-310.24516055,0.00035563,2]
[423048661,1779797451000,-300.0,0.00035563,2]
[423048627,1779797451000,-300.96252262,0.00035563,2]
[423048633,1779797451000,-300.0,0.00035563,2]
[423048637,1779797451000,-527.56699294,0.00035563,2]
[423048632,1779797451000,-300.0,0.00035563,2]
[423048639,1779797451000,-300.0,0.00035563,2]
[423048640,1779797451000,-300.0,0.00035563,2]
[423048636,1779797451000,-344.4170137,0.00035563,2]
[423048641,1779797451000,-300.0,0.00035563,2]
[423048634,1779797451000,-1263.82495173,0.00035563,2]
[423048642,1779797451000,-865.53028801,0.00035563,2]
[423048644,1779797451000,-300.0,0.00035563,2]
[423048643,1779797451000,-950.21744792,0.00035563,2]
[423048638,1779797451000,-372.33517617,0.00035563,2]
[423048635,1779797451000,-300.0,0.00035563,2]
[423048650,1779797451000,-300.0,0.00035563,2]
[423048645,1779797451000,-1148.70755237,0.00035563,2]
[423048658,1779797451000,-578.19877315,0.00035563,2]
[423048653,1779797451000,-594.73329586,0.00035563,2]
[423048648,1779797451000,-300.0,0.00035563,2]
[423048651,1779797451000,-300.0,0.00035563,2]
[423048655,1779797451000,-300.0,0.00035563,2]
[423048656,1779797451000,-464.43646992,0.00035563,2]
[423048654,1779797451000,-300.0,0.00035563,2]
[423048649,1779797451000,-1633.90603547,0.00035563,2]
[423048647,1779797451000,-300.0,0.00035563,2]
[423048646,1779797451000,-309.98994128,0.00035563,2]
[423048652,1779797451000,-300.0,0.00035563,2]
[423048657,1779797451000,-300.0,0.00035563,2]
[423048727,1779797452000,-1341.12,0.00036167,120]
[423048720,1779797452000,-283.78,0.00036011,2]
[423048718,1779797452000,-2832.43925769,0.00036,2]
[423048719,1779797452000,-945.93,0.00036011,2]
[423048724,1779797452000,-1223.96407038,0.00036094,2]
[423048722,1779797452000,-11998.2705,0.00036093,2]
[423048723,1779797452000,-2245.0354,0.00036093,2]
[423048725,1779797452000,-200.0,0.000361,30]
[423048726,1779797452000,-377.6,0.00036153,30]
[423048729,1779797452000,-11998.2705,0.00036221,2]
[423048721,1779797452000,-230.35004292,0.00036065,2]
[423048733,1779797452000,-49325.58998294,0.000364,2]
[423048738,1779797452000,-2245.0354,0.00036605,2]
[423048730,1779797452000,-505.0,0.00036252,13]
[423048734,1779797452000,-103042.0,0.000364,30]
[423048736,1779797452000,-30043.97611207,0.000365,10]
[423048739,1779797452000,-1502.63829205,0.00036607,2]
[423048735,1779797452000,-11998.2705,0.00036477,2]
[423048732,1779797452000,-2245.0354,0.00036349,2]
[423048731,1779797452000,-11998.2705,0.00036349,2]
[423048711,1779797452000,-500.0,0.00036,2]
[423048737,1779797452000,-11998.2705,0.00036605,2]
[423048728,1779797452000,-500.0,0.0003622,30]
[423048715,1779797452000,-500.0,0.00036,2]
[423048704,1779797452000,-500.0,0.00036,2]
[423048712,1779797452000,-500.0,0.00036,2]
[423048741,1779797452000,-3547.0,0.00036733,2]
[423048693,1779797452000,-500.0,0.00036,2]
[423048694,1779797452000,-500.0,0.00036,2]
[423048692,1779797452000,-500.0,0.00036,2]
[423048691,1779797452000,-500.0,0.00036,2]
[423048695,1779797452000,-500.0,0.00036,2]
[423048700,1779797452000,-500.0,0.00036,2]
[423048705,1779797452000,-500.0,0.00036,2]
[423048698,1779797452000,-500.0,0.00036,2]
[423048697,1779797452000,-500.0,0.00036,2]
[423048702,1779797452000,-500.0,0.00036,2]
[423048701,1779797452000,-500.0,0.00036,2]
[423048696,1779797452000,-500.0,0.00036,2]
[423048699,1779797452000,-500.0,0.00036,2]
[423048703,1779797452000,-500.0,0.00036,2]
[423048716,1779797452000,-500.0,0.00036,2]
[423048717,1779797452000,-603.59,0.00036,2]
[423048713,1779797452000,-500.0,0.00036,2]
[423048714,1779797452000,-500.0,0.00036,2]
[423048709,1779797452000,-500.0,0.00036,2]
[423048708,1779797452000,-500.0,0.00036,2]
[423048710,1779797452000,-500.0,0.00036,2]
[423048707,1779797452000,-500.0,0.00036,2]
[423048706,1779797452000,-500.0,0.00036,2]
[423048751,1779797452000,-11998.2705,0.00036861,2]
[423048750,1779797452000,-350.0,0.00036849,5]
[423048740,1779797452000,-2000.0,0.000367,7]
[423048772,1779797452000,-2081.9986562,0.000373,30]
[423048770,1779797452000,-226.2484586,0.00037281,2]
[423048774,1779797452000,-2081.99865618,0.000373,30]
[423048773,1779797452000,-2081.99865618,0.000373,30]
[423048777,1779797452000,-5000.0,0.00037371,2]
[423048787,1779797452000,-300.0,0.00037535,2]
[423048781,1779797452000,-2245.0354,0.00037373,2]
[423048778,1779797452000,-5000.0,0.00037371,2]
[423048784,1779797452000,-174.45,0.00037485,10]
[423048780,1779797452000,-11998.2705,0.00037373,2]
[423048771,1779797452000,-157.86609764,0.00037292,5]
[423048783,1779797452000,-238.42018816,0.00037479,2]
[423048779,1779797452000,-5113.95130202,0.00037371,2]
[423048776,1779797452000,-5000.0,0.00037371,2]
[423048782,1779797452000,-400.0,0.00037449,2]
[423048788,1779797452000,-300.0,0.00037535,2]
[423048789,1779797452000,-300.0,0.00037535,2]
[423048792,1779797452000,-300.0,0.00037535,2]
[423048790,1779797452000,-300.0,0.00037535,2]
[423048791,1779797452000,-300.0,0.00037535,2]
[423048793,1779797452000,-312.57,0.00037535,2]
[423048743,1779797452000,-1355.0,0.00036733,2]
[423048785,1779797452000,-11998.2705,0.00037501,2]
[423048769,1779797452000,-11998.2705,0.00037245,2]
[423048786,1779797452000,-1437.67899428,0.0003751,3]
[423048775,1779797452000,-5000.0,0.00037371,2]
[423048767,1779797452000,-505.0,0.00037183,14]
[423048744,1779797452000,-450.781,0.00036733,2]
[423048748,1779797452000,-157.86609764,0.00036744,5]
[423048749,1779797452000,-1640.42014877,0.000368,2]
[423048746,1779797452000,-1225.0,0.00036733,2]
[423048745,1779797452000,-1272.0,0.00036733,2]
[423048747,1779797452000,-11998.2705,0.00036733,2]
[423048752,1779797452000,-2245.0354,0.00036861,2]
[423048753,1779797452000,-150.0,0.0003688,2]
[423048755,1779797452000,-200.0,0.0003691,30]
[423048763,1779797452000,-319.39468312,0.00037071,5]
[423048756,1779797452000,-449.42469043,0.00036936,37]
[423048742,1779797452000,-928.0,0.00036733,2]
[423048768,1779797452000,-500.0,0.00037244,30]
[423048757,1779797452000,-11998.2705,0.00036989,2]
[423048758,1779797452000,-365.0,0.00037,2]
[423048760,1779797452000,-4500.0,0.00037,2]
[423048762,1779797452000,-157.86609764,0.00037018,5]
[423048759,1779797452000,-168.75906586,0.00037,2]
[423048761,1779797452000,-419.0,0.00037,5]
[423048764,1779797452000,-11998.2705,0.00037117,2]
[423048765,1779797452000,-2245.0354,0.00037117,2]
[423048766,1779797452000,-4288.93127889,0.00037142,2]
[423048754,1779797452000,-194.02972501,0.00036899,2]
[423048824,1779797453000,-151.14559393,0.00038143,2]
[423048827,1779797453000,-5000.0,0.00038166,2]
[423048825,1779797453000,-8057.99538134,0.00038146,3]
[423048826,1779797453000,-5000.0,0.00038166,2]
[423048821,1779797453000,-505.0,0.00038114,15]
[423048834,1779797453000,-167.29396156,0.00038356,60]
[423048823,1779797453000,-377.6,0.00038125,30]
[423048817,1779797453000,-152.0,0.00038,120]
[423048830,1779797453000,-5000.0,0.00038166,2]
[423048829,1779797453000,-5000.0,0.00038166,2]
[423048831,1779797453000,-150.0,0.00038286,2]
[423048837,1779797453000,-610.56,0.00038356,2]
[423048832,1779797453000,-4288.93127889,0.0003832,2]
[423048794,1779797453000,-7761.86112084,0.00037535,2]
[423048836,1779797453000,-1000.0,0.00038356,2]
[423048835,1779797453000,-1000.0,0.00038356,2]
[423048838,1779797453000,-207.79841509,0.00038356,2]
[423048841,1779797453000,-250.0,0.000384,2]
[423048844,1779797453000,-500.0,0.00038563,30]
[423048839,1779797453000,-157.86609764,0.00038388,5]
[423048840,1779797453000,-250.0,0.000384,2]
[423048842,1779797453000,-151.0,0.000385,120]
[423048833,1779797453000,-3075.04602691,0.00038325,2]
[423048818,1779797453000,-245.33,0.0003802,60]
[423048798,1779797453000,-242.14,0.000376,120]
[423048812,1779797453000,-157.86609764,0.0003784,5]
[423048797,1779797453000,-103042.0,0.000376,30]
[423048795,1779797453000,-157.86609764,0.00037566,5]
[423048796,1779797453000,-4414.55143921,0.0003759,2]
[423048810,1779797453000,-350.0,0.00037808,5]
[423048799,1779797453000,-11998.271,0.00037629,2]
[423048805,1779797453000,-5000.0,0.00037768,2]
[423048809,1779797453000,-1905.91999589,0.00037804,2]
[423048803,1779797453000,-5000.0,0.00037768,2]
[423048806,1779797453000,-5000.0,0.00037768,2]
[423048800,1779797453000,-2245.0359,0.00037629,2]
[423048843,1779797453000,-300.0,0.0003851,30]
[423048801,1779797453000,-289.60482248,0.00037671,2]
[423048807,1779797453000,-5000.0,0.00037768,2]
[423048804,1779797453000,-5000.0,0.00037768,2]
[423048802,1779797453000,-200.0,0.0003771,30]
[423048811,1779797453000,-2316.0,0.00037819,11]
[423048813,1779797453000,-205.91238881,0.0003788,2]
[423048820,1779797453000,-4684.8,0.000381,2]
[423048816,1779797453000,-151.0,0.00038,120]
[423048815,1779797453000,-215.42269777,0.00038,3]
[423048822,1779797453000,-157.86609764,0.00038114,5]
[423048819,1779797453000,-1502.63829205,0.00038052,2]
[423048808,1779797453000,-5000.0,0.00037768,2]
[423048845,1779797453000,-5000.0,0.00038563,2]
[423048814,1779797453000,-1905.91999589,0.00037991,2]
[423048856,1779797453000,-150.0,0.00038679,7]
[423048881,1779797453000,-442.61,0.00038992,2]
[423048879,1779797453000,-5000.0,0.00038961,2]
[423048877,1779797453000,-5000.0,0.00038961,2]
[423048880,1779797453000,-161.68195318,0.0003899,2]
[423048876,1779797453000,-157.86609764,0.00038936,5]
[423048878,1779797453000,-5000.0,0.00038961,2]
[423048882,1779797453000,-215.18,0.00038992,2]
[423048885,1779797453000,-300.0,0.00038999,10]
[423048883,1779797453000,-156.39,0.00038992,2]
[423048893,1779797453000,-247346.11664259,0.00039,2]
[423048888,1779797453000,-300.0,0.00038999,10]
[423048886,1779797453000,-300.0,0.00038999,10]
[423048887,1779797453000,-300.0,0.00038999,10]
[423048884,1779797453000,-300.0,0.00038999,10]
[423048891,1779797453000,-500.0,0.00038999,30]
[423048889,1779797453000,-666.0,0.00038999,30]
[423048892,1779797453000,-412.44368182,0.00038999,30]
[423048890,1779797453000,-500.0,0.00038999,30]
[423048896,1779797453000,-1350.15513964,0.00039,15]
[423048897,1779797453000,-280790.80686451,0.00039,2]
[423048894,1779797453000,-300.0,0.00039,2]
[423048895,1779797453000,-555996.39144844,0.00039,2]
[423048857,1779797453000,-150.0,0.00038679,7]
[423048874,1779797453000,-16059.97027029,0.000389,2]
[423048875,1779797453000,-152.0,0.00038904,4]
[423048828,1779797453000,-5000.0,0.00038166,2]
[423048872,1779797453000,-3897.3529633,0.000389,2]
[423048858,1779797453000,-150.0,0.00038679,7]
[423048871,1779797453000,-1799.21662606,0.000389,2]
[423048846,1779797453000,-5000.0,0.00038563,2]
[423048849,1779797453000,-3171.4394,0.0003864,30]
[423048853,1779797453000,-150.0,0.00038679,7]
[423048847,1779797453000,-5000.0,0.00038563,2]
[423048855,1779797453000,-150.51859284,0.00038679,7]
[423048854,1779797453000,-150.0,0.00038679,7]
[423048850,1779797453000,-157.86609764,0.00038662,5]
[423048852,1779797453000,-150.0,0.00038679,7]
[423048851,1779797453000,-150.0,0.00038679,7]
[423048860,1779797453000,-350.0,0.00038767,5]
[423048848,1779797453000,-5000.0,0.00038563,2]
[423048863,1779797453000,-250.0,0.000388,2]
[423048869,1779797453000,-464.2,0.000389,120]
[423048862,1779797453000,-250.0,0.000388,2]
[423048864,1779797453000,-250.0,0.000388,2]
[423048865,1779797453000,-250.0,0.000388,2]
[423048866,1779797453000,-103042.0,0.000388,30]
[423048861,1779797453000,-321.25806271,0.00038785,120]
[423048867,1779797453000,-6000.0,0.000388,14]
[423048868,1779797453000,-201.15,0.00038805,30]
[423048870,1779797453000,-7600.0,0.000389,14]
[423048873,1779797453000,-171.37118526,0.000389,2]
[423048859,1779797453000,-150.0,0.00038724,2]
[423048900,1779797454000,-404.0,0.000335,5]
[423048898,1779797454000,-163.9,0.00027588,30]
[423048903,1779797454000,-1123.25543299,0.00034795,2]
[423048901,1779797454000,-2237.5363401,0.00034735,2]
[423048899,1779797454000,-163.9,0.0003003,7]
[423048904,1779797454000,-300.0,0.00035563,2]
[423048902,1779797454000,-1.66578503,0.00034735,2]
[423048905,1779797454000,-300.0,0.00035563,2]
[423048907,1779797454000,-528.5,0.00039,2]
[423048906,1779797454000,-94.12945512,0.00039,2]
[423048949,1779798401000,-154.44,0.00012661,2]
[423048950,1779798401000,-194.56841613,0.00013927,2]
[423048967,1779798631000,-548.0,0.00016109,2]
[423048964,1779798631000,-1817.39048255,0.00016094,2]
[423048965,1779798631000,-2628.14422232,0.00016094,2]
[423048969,1779798631000,-1213.9,0.00016438,2]
[423048970,1779798631000,-150.0,0.00016438,2]
[423048968,1779798631000,-6736.19699866,0.0001611,15]
[423048966,1779798631000,-300.0,0.00016109,2]
[423048971,1779798631000,-151.0,0.00016438,2]
[423048972,1779798631000,-152.0,0.00016438,2]
[423048974,1779798631000,-151.0,0.00016438,2]
[423048977,1779798631000,-297.0,0.00016438,2]
[423048973,1779798631000,-151.0,0.00016438,2]
[423048975,1779798631000,-247.0,0.00016438,2]
[423049002,1779798632000,-158.0,0.0002,2]
[423049005,1779798632000,-375.0,0.0002,2]
[423048998,1779798632000,-207.0,0.0002,2]
[423049014,1779798632000,-150.0,0.0002,2]
[423049008,1779798632000,-541.0,0.0002,2]
[423049012,1779798632000,-156.0,0.0002,2]
[423049006,1779798632000,-428.0,0.0002,2]
[423049000,1779798632000,-311.0,0.0002,2]
[423049010,1779798632000,-649.0,0.0002,2]
[423048985,1779798632000,-183.14125264,0.00018324,2]
[423048993,1779798632000,-433.35617811,0.0001995,7]
[423048981,1779798632000,-405.43158387,0.00017703,2]
[423048979,1779798632000,-150.0,0.00016438,2]
[423048983,1779798632000,-249.55353456,0.00018,2]
[423048989,1779798632000,-6186.77927806,0.0001985,2]
[423048991,1779798632000,-16333.37111486,0.0001995,15]
[423048987,1779798632000,-1213.9,0.0001841,2]
[423048997,1779798632000,-292.0,0.0002,2]
[423049016,1779798632000,-151.0,0.0002,2]
[423048995,1779798632000,-161.0,0.0002,2]
[423049018,1779798632000,-3354.77252665,0.00020012,2]
[423049052,1779798632000,-235.73907833,0.00021004,2]
[423049053,1779798632000,-630.14180393,0.00021058,2]
[423049047,1779798632000,-541.0,0.00021,2]
[423049051,1779798632000,-156.0,0.00021,2]
[423049045,1779798632000,-428.0,0.00021,2]
[423049029,1779798632000,-6186.77927806,0.00020859,2]
[423049054,1779798632000,-7530.37391779,0.00021073,2]
[423049041,1779798632000,-158.0,0.00021,2]
[423049039,1779798632000,-311.0,0.00021,2]
[423049043,1779798632000,-375.0,0.00021,2]
[423049033,1779798632000,-200.0,0.00021,2]
[423049037,1779798632000,-207.0,0.00021,2]
[423049020,1779798632000,-3375.0,0.00020132,2]
[423049022,1779798632000,-6186.77927806,0.00020355,2]
[423049026,1779798632000,-1213.9,0.00020381,2]
[423049035,1779798632000,-292.0,0.00021,2]
[423049025,1779798632000,-169.74479874,0.00020377,2]
[423049031,1779798632000,-200.0,0.00021,2]
[423049049,1779798632000,-649.0,0.00021,2]
[423049057,1779798637000,-1950.0,0.00021073,2]
[423049059,1779798638000,-2133.30533696,0.00021073,2]
[423049058,1779798638000,-981.56,0.00021073,2]
[423049205,1779798640000,-5205.65525692,0.00021073,2]
[423049233,1779798643000,-142.359205,0.00021073,2]
[423049230,1779798643000,-3217.4514691,0.00021073,2]
[423049235,1779798646000,-328.08900377,0.00021073,2]
[423049237,1779798646000,-2688.67,0.00021073,2]
[423049236,1779798646000,-6268.39182898,0.00021073,2]
[423049440,1779798960000,-600.8,0.00039167,120]
[423049438,1779798960000,-600.8,0.00039167,120]
[423049439,1779798960000,-600.8,0.00039167,120]
[423049458,1779798961000,-660.84,0.00039167,120]
[423049456,1779798961000,-660.84,0.00039167,120]
[423049453,1779798961000,-660.84,0.00039167,120]
[423049454,1779798961000,-660.84,0.00039167,120]
[423049457,1779798961000,-660.84,0.00039167,120]
[423049455,1779798961000,-660.84,0.00039167,120]
[423049452,1779798961000,-660.84,0.00039167,120]
[423049451,1779798961000,-660.84,0.00039167,120]
[423049450,1779798961000,-600.84318757,0.00039167,120]
[423049448,1779798961000,-600.8,0.00039167,120]
[423049446,1779798961000,-10000.0,0.00039167,30]
[423049447,1779798961000,-600.8,0.00039167,120]
[423049445,1779798961000,-600.8,0.00039167,120]
[423049444,1779798961000,-600.8,0.00039167,120]
[423049442,1779798961000,-7368.77798618,0.00039167,30]
[423049443,1779798961000,-600.8,0.00039167,120]
[423049441,1779798961000,-600.8,0.00039167,120]
[423049449,1779798961000,-600.8,0.00039167,120]
[423049459,1779798961000,-660.84,0.00039167,120]
[423049466,1779798961000,-660.84,0.00039167,120]
[423049461,1779798961000,-660.84,0.00039167,120]
[423049460,1779798961000,-660.84,0.00039167,120]
[423049479,1779798961000,-500.0,0.00039167,120]
[423049478,1779798961000,-172.89374402,0.00039167,120]
[423049477,1779798961000,-175.0,0.00039167,120]
[423049476,1779798961000,-193.0,0.00039167,120]
[423049474,1779798961000,-661.07622301,0.00039167,120]
[423049473,1779798961000,-660.84,0.00039167,120]
[423049472,1779798961000,-660.84,0.00039167,120]
[423049475,1779798961000,-561.85564643,0.00039167,120]
[423049469,1779798961000,-660.84,0.00039167,120]
[423049470,1779798961000,-660.84,0.00039167,120]
[423049463,1779798961000,-660.84,0.00039167,120]
[423049464,1779798961000,-660.84,0.00039167,120]
[423049465,1779798961000,-660.84,0.00039167,120]
[423049462,1779798961000,-660.84,0.00039167,120]
[423049468,1779798961000,-660.84,0.00039167,120]
[423049471,1779798961000,-660.84,0.00039167,120]
[423049467,1779798961000,-660.84,0.00039167,120]
[423049491,1779798962000,-349.61727698,0.00039167,120]
[423049496,1779798962000,-80000.0,0.00039167,120]
[423049497,1779798962000,-500.0,0.00039167,120]
[423049495,1779798962000,-352.5,0.00039167,120]
[423049494,1779798962000,-187.42559438,0.00039167,120]
[423049493,1779798962000,-500.0,0.00039167,120]
[423049492,1779798962000,-3000000.0,0.00039167,120]
[423049490,1779798962000,-500.0,0.00039167,120]
[423049498,1779798962000,-500.0,0.00039167,120]
[423049487,1779798962000,-500.0,0.00039167,120]
[423049486,1779798962000,-500.0,0.00039167,120]
[423049485,1779798962000,-500.0,0.00039167,120]
[423049484,1779798962000,-500.0,0.00039167,120]
[423049483,1779798962000,-1000.0,0.00039167,30]
[423049482,1779798962000,-15000.0,0.00039167,120]
[423049481,1779798962000,-216.0,0.00039167,120]
[423049480,1779798962000,-10000.0,0.00039167,60]
[423049489,1779798962000,-500.0,0.00039167,120]
[423049499,1779798962000,-588.82929264,0.00039167,120]
[423049488,1779798962000,-500.0,0.00039167,120]
[423049502,1779798962000,-755.64,0.00039167,120]
[423049500,1779798962000,-5000.0,0.00039167,120]
[423049518,1779798962000,-755.64,0.00039167,120]
[423049516,1779798962000,-755.64,0.00039167,120]
[423049513,1779798962000,-755.64,0.00039167,120]
[423049514,1779798962000,-755.64,0.00039167,120]
[423049515,1779798962000,-755.64,0.00039167,120]
[423049512,1779798962000,-755.64,0.00039167,120]
[423049511,1779798962000,-755.64,0.00039167,120]
[423049519,1779798962000,-755.64,0.00039167,120]
[423049517,1779798962000,-755.64,0.00039167,120]
[423049509,1779798962000,-755.64,0.00039167,120]
[423049508,1779798962000,-755.64,0.00039167,120]
[423049507,1779798962000,-755.64,0.00039167,120]
[423049506,1779798962000,-755.64,0.00039167,120]
[423049504,1779798962000,-755.64,0.00039167,120]
[423049505,1779798962000,-755.64,0.00039167,120]
[423049503,1779798962000,-755.64,0.00039167,120]
[423049501,1779798962000,-75236.142905,0.00039167,120]
[423049510,1779798962000,-755.64,0.00039167,120]
[423049534,1779798963000,-3751.81,0.00039167,120]
[423049535,1779798963000,-3751.81,0.00039167,120]
[423049532,1779798963000,-3751.81,0.00039167,120]
[423049530,1779798963000,-3751.81,0.00039167,120]
[423049531,1779798963000,-3751.81,0.00039167,120]
[423049529,1779798963000,-3751.81,0.00039167,120]
[423049528,1779798963000,-602.63455475,0.00039167,120]
[423049523,1779798963000,-755.64,0.00039167,120]
[423049527,1779798963000,-362.67,0.00039167,30]
[423049525,1779798963000,-755.72565794,0.00039167,120]
[423049524,1779798963000,-755.64,0.00039167,120]
[423049522,1779798963000,-755.64,0.00039167,120]
[423049521,1779798963000,-755.64,0.00039167,120]
[423049520,1779798963000,-755.64,0.00039167,120]
[423049533,1779798963000,-3751.81,0.00039167,120]
[423049526,1779798963000,-50000.0,0.00039167,57]
[423049536,1779798963000,-3751.81,0.00039167,120]
[423049537,1779798963000,-3751.81,0.00039167,120]
[423049550,1779798963000,-3751.81,0.00039167,120]
[423049554,1779798963000,-1151.59,0.00039167,120]
[423049538,1779798963000,-3751.81,0.00039167,120]
[423049555,1779798963000,-1151.59,0.00039167,120]
[423049553,1779798963000,-1151.59,0.00039167,120]
[423049552,1779798963000,-3751.96674709,0.00039167,120]
[423049551,1779798963000,-3751.81,0.00039167,120]
[423049548,1779798963000,-3751.81,0.00039167,120]
[423049545,1779798963000,-3751.81,0.00039167,120]
[423049549,1779798963000,-3751.81,0.00039167,120]
[423049546,1779798963000,-3751.81,0.00039167,120]
[423049544,1779798963000,-3751.81,0.00039167,120]
[423049542,1779798963000,-3751.81,0.00039167,120]
[423049543,1779798963000,-3751.81,0.00039167,120]
[423049541,1779798963000,-3751.81,0.00039167,120]
[423049540,1779798963000,-3751.81,0.00039167,120]
[423049539,1779798963000,-3751.81,0.00039167,120]
[423049547,1779798963000,-3751.81,0.00039167,120]
[423049570,1779798964000,-1151.59,0.00039167,120]
[423049568,1779798964000,-1151.59,0.00039167,120]
[423049569,1779798964000,-1151.59,0.00039167,120]
[423049574,1779798964000,-1151.59,0.00039167,120]
[423049572,1779798964000,-1151.59,0.00039167,120]
[423049567,1779798964000,-1151.59,0.00039167,120]
[423049571,1779798964000,-1151.59,0.00039167,120]
[423049565,1779798964000,-1151.59,0.00039167,120]
[423049556,1779798964000,-1151.59,0.00039167,120]
[423049564,1779798964000,-1151.59,0.00039167,120]
[423049563,1779798964000,-1151.59,0.00039167,120]
[423049561,1779798964000,-1151.59,0.00039167,120]
[423049562,1779798964000,-1151.59,0.00039167,120]
[423049560,1779798964000,-1151.59,0.00039167,120]
[423049558,1779798964000,-1151.59,0.00039167,120]
[423049559,1779798964000,-1151.59,0.00039167,120]
[423049566,1779798964000,-1151.59,0.00039167,120]
[423049573,1779798964000,-1151.59,0.00039167,120]
[423049557,1779798964000,-1151.59,0.00039167,120]
[423049577,1779798964000,-500.0,0.00039167,120]
[423049575,1779798964000,-1151.59,0.00039167,120]
[423049591,1779798964000,-500.0,0.00039167,120]
[423049592,1779798964000,-500.0,0.00039167,120]
[423049590,1779798964000,-500.0,0.00039167,120]
[423049587,1779798964000,-500.0,0.00039167,120]
[423049589,1779798964000,-500.0,0.00039167,120]
[423049588,1779798964000,-500.0,0.00039167,120]
[423049586,1779798964000,-500.0,0.00039167,120]
[423049593,1779798964000,-500.0,0.00039167,120]
[423049585,1779798964000,-500.0,0.00039167,120]
[423049583,1779798964000,-500.0,0.00039167,120]
[423049582,1779798964000,-500.0,0.00039167,120]
[423049580,1779798964000,-500.0,0.00039167,120]
[423049581,1779798964000,-500.0,0.00039167,120]
[423049579,1779798964000,-500.0,0.00039167,120]
[423049578,1779798964000,-500.0,0.00039167,120]
[423049576,1779798964000,-1151.74,0.00039167,120]
[423049584,1779798964000,-500.0,0.00039167,120]
[423049608,1779798965000,-500.0,0.00039167,120]